Cogmind - Beta 16 @@@ ROGUE MODE // 2025.11.13 @ 22:18:43 Player: C0-2MO Result: Destroyed by Executioner with Helical Railgun Performance ------------- Evolutions (9) 4500 Regions Visited (16) 3200 Robots Destroyed (0) 0 Value Destroyed (10) 10 Prototype IDs (9) 180 Alien Tech Used (0) 0 Bonus (9106) 9106 TOTAL SCORE: 16996 Bonus ------- Pacifist 7906 Entered Garrisons 200 Entered DSFs 1000 Cogmind --------- Core Integrity 0/1600 Matter 46/300 Energy 323/340 System Corruption 12% Temperature Cool (0) Movement Treading (145) Location -1/Command Parts ------- > --- POWER (2) -------- Particle Reactor > --- PROPULSION (8) --- Advanced Medium Treads Advanced Medium Treads Impulse Thruster Impulse Thruster Improved Diametric Drive Impulse Thruster Array > --- UTILITY (13) ----- Enhanced Optical Array Experimental Signal Interpreter Advanced Terrain Scan Processor Advanced Terrain Scan Processor Quantum Capacitor Improved Core Shielding Improved Core Shielding Hacking Suite Hacking Suite Improved System Shield > --- WEAPON (2) ------- Backup Laser VII Backup Laser VII > --- INVENTORY (5) ---- Medium Storage Unit Spear Peak State ------------ > --- POWER ------------ Particle Reactor > --- PROPULSION ------- Impulse Thruster Impulse Thruster Impulse Thruster Impulse Thruster Improved Diametric Drive Impulse Thruster Array > --- UTILITY ---------- Improved Cooling System Enhanced Optical Array Experimental Signal Interpreter Advanced Terrain Scan Processor Advanced Terrain Scan Processor Quantum Capacitor Stasis Canceller Improved Core Shielding Improved Core Shielding Hacking Suite Hacking Suite Improved System Shield > --- WEAPON ----------- Backup Laser VII Backup Laser VII > --- INVENTORY -------- Advanced Medium Treads Advanced Medium Treads Medium Storage Unit Spear [Rating: 141] Favorites ----------- Power Improved Deuterium Engine Engine Improved Deuterium Engine Power Core Micro Fission Core Reactor Light Particle Reactor Propulsion Xenon Bombardment Thruster Treads Advanced Medium Treads Wheel Armored Huge Wheel Hover Unit Gravmag Array Flight Unit Xenon Bombardment Thruster Utility Hacking Suite Device Advanced Sensor Array Storage Medium Storage Unit Processor Enhanced Optical Array Hackware Hacking Suite Protection Light Armor Plating Weapon Spear Energy Gun Backup Laser VII Impact Weapon Heavy Mace Slashing Weapon Chainsword Piercing Weapon Spear Build | -11 -10 -9 -9 -8 -7 -7 -7 -7 -6 -5 -4 -3 -2 -2 -1 -1 ------- Run | Yrd Mat Mat Min Mat Fac Gar Fac DSF Fac Fac Fac Res Res DSF Acc Com Slots Evolved 18 | . . 2 . 2 2 . . . 2 2 2 2 2 . 2 . Power 1 | . . . . . 1 . . . . . . . . . . . Propulsion 6 | . . 2 . . 1 . . . 1 . 1 . 1 . . . Utility 11 | . . . . 2 . . . . 1 2 1 2 1 . 2 . Weapon . | . . . . . . . . . . . . . . . . . Parts Attached 71 | . . 2 . 1 1 . . 11 4 3 10 6 2 3 20 8 Power 9 | . . . . . . . . 3 . . 1 1 . . 4 . Engine 4 | . . . . . . . . 2 . . 1 . . . 1 . Core 2 | . . . . . . . . 1 . . . . . . 1 . Reactor 3 | . . . . . . . . . . . . 1 . . 2 . Propulsion 27 | . . 1 . . 1 . . 5 1 . 1 1 . . 14 3 Treads 2 | . . . . . . . . . . . . . . . . 2 Leg . | . . . . . . . . . . . . . . . . . Wheel 1 | . . . . . 1 . . . . . . . . . . . Hover 2 | . . . . . . . . . . . . . . . 2 . Flight 22 | . . 1 . . . . . 5 1 . 1 1 . . 12 1 Utility 32 | . . 1 . 1 . . . 3 3 2 7 3 2 3 2 5 Device 8 | . . . . . . . . . 1 . 1 1 1 1 1 2 Storage 1 | . . . . . . . . . . 1 . . . . . . Processor 6 | . . . . . . . . . 1 . 2 1 . 2 . . Hackware 13 | . . . . 1 . . . 3 1 1 4 1 . . 1 1 Protection 4 | . . 1 . . . . . . . . . . 1 . . 2 Artifact . | . . . . . . . . . . . . . . . . . Weapon 3 | . . . . . . . . . . 1 1 1 . . . . Energy Gun . | . . . . . . . . . . . . . . . . . Energy Cannon . | . . . . . . . . . . . . . . . . . Ballistic Gun . | . . . . . . . . . . . . . . . . . Ballistic Cannon . | . . . . . . . . . . . . . . . . . Launcher . | . . . . . . . . . . . . . . . . . Special Weapon . | . . . . . . . . . . . . . . . . . Impact Weapon 1 | . . . . . . . . . . . . 1 . . . . Slashing Weapon 1 | . . . . . . . . . . 1 . . . . . . Piercing Weapon 1 | . . . . . . . . . . . 1 . . . . . Special Melee Weapon . | . . . . . . . . . . . . . . . . . Unidentified Prototypes 4 | . . . . . . . . . . . 2 . 1 . 1 . Parts Lost 43 | . . 1 . 1 . . . 1 1 . 8 5 . . 20 6 Power 10 | . . . . . . . . 1 . . 2 2 . . 4 1 Propulsion 20 | . . . . 1 . . . . 1 . 3 1 . . 11 3 Utility 11 | . . 1 . . . . . . . . 2 2 . . 4 2 Weapon 2 | . . . . . . . . . . . 1 . . . 1 . Highest Loss Streak 14 | . . 1 . 1 . . . 1 1 . 4 3 . . 14 6 To Critical Strikes 1 | . . . . . . . . . . . . . . . 1 . Average Backups 2 | . 1 1 1 1 2 3 3 3 1 1 2 3 5 5 4 4 Power 1 | . 1 1 1 1 2 3 3 2 . . . 1 3 3 1 . Propulsion . | . . . . . . . . . . . . . . . . 1 Utility 1 | . . . . . . . . . 1 . 2 2 2 2 2 1 Weapon . | . . . . . . . . . . . . . . . . 1 Tool/Special . | . . . . . . . . . . . . . . . . . Unused Backups . | . . . . . . . . . . . . . . . . . Power . | . . . . . . . . . . . . . . . . . Propulsion . | . . . . . . . . . . . . . . . . . Utility . | . . . . . . . . . . . . . . . . . Weapon . | . . . . . . . . . . . . . . . . . Tool/Special . | . . . . . . . . . . . . . . . . . Average Slot Usage (%) 54 | . . 11 11 12 9 15 15 38 84 85 70 77 58 64 60 72 Engine 2 | . . . . . . . . 2 6 5 6 3 . . . . Core 1 | . . . . . . . . 2 6 5 . 1 . . 1 2 Reactor 1 | . . . . . . . . . . . . 3 4 4 1 4 Hover 1 | . . . . . . . . . . . . . . . 5 . Flight 14 | . . 6 11 7 . . . 16 39 29 19 18 13 13 9 25 Device 5 | . . . . . . . . . 4 5 5 6 6 9 10 5 Processor 8 | . . . . . . . . . 3 5 7 13 13 15 16 16 Hackware 13 | . . . . 4 7 7 7 10 23 23 23 21 13 13 10 10 Impact Weapon 1 | . . . . . . . . . . . . 2 4 4 3 . Piercing Weapon 1 | . . . . . . . . . . . 4 4 4 4 2 . Peak Build Rating 141 | . . 2 1 4 11 11 11 40 49 53 74 99 96 89 109 141 Average Rating 56 | . . 1 1 2 6 11 11 22 47 52 54 91 78 81 81 123 On Entrance 34 | . . . 1 1 3 11 11 11 40 45 53 71 77 78 89 103 Avg Prop Armor Cover (%) 20 | . . . . . 34 34 . 30 9 . . . . . 16 . Naked Turns 40 | . 37 3 . . . . . . . . . . . . . . Heaviest Build 41 | . . 3 . . . . . 11 13 26 26 31 21 22 30 41 Greatest Support 58 | 3 3 4 4 4 3 3 3 30 42 35 36 38 31 31 42 58 Greatest Overweight (x) 2 | . . . . . . . . . . . . . . . 2 . Average Overweight (x) . | . . . . . . . . . . . . . . . . . Largest Inventory Capacity 10 | 5 5 5 5 5 5 5 5 5 5 10 10 5 5 5 5 5 Average Capacity 5 | 5 5 5 5 5 5 5 5 5 5 9 7 5 5 5 5 5 Most Carried 5 | 1 1 1 1 2 3 3 3 5 2 1 4 5 5 5 5 5 Average Carried 3 | . 1 1 1 1 2 3 3 3 1 . 2 3 5 5 4 4 Final Capacity 10 | 5 5 5 5 5 5 5 5 5 5 10 5 5 5 5 5 5 Final Carried 5 | 1 1 1 1 2 3 3 3 3 2 1 4 5 5 5 4 2 Class Distribution -------------------- 32% | Hacker-Sprinter 25% | Mutant 22% | Hacker-Scout 14% | Hacker-Ninja 5% | Hacker-Mutant Dominant Class ---------------- Mutant | -10/Materials Mutant | -9/Materials Mutant | -9/Mines Mutant | -8/Materials Mutant | -7/Factory Mutant | -7/Garrison Mutant | -7/Factory Mutant | -7/DSF Hacker-Sprinter | -6/Factory Hacker-Sprinter | -5/Factory Hacker-Sprinter | -4/Factory Hacker-Scout | -3/Research Hacker-Scout | -2/Research Hacker-Scout | -2/DSF Hacker-Scout | -1/Access Hacker-Sprinter | -1/Command Resources | -11 -10 -9 -9 -8 -7 -7 -7 -7 -6 -5 -4 -3 -2 -2 -1 -1 ----------- Run | Yrd Mat Mat Min Mat Fac Gar Fac DSF Fac Fac Fac Res Res DSF Acc Com Matter Collected 594 | 199 . . . . . . . 23 98 . 88 126 . . 60 . Remotely . | . . . . . . . . . . . . . . . . . Salvage Created . | . . . . . . . . . . . . . . . . . Parts . | . . . . . . . . . . . . . . . . . Haulers Intercepted . | . . . . . . . . . . . . . . . . . Recyclers Shooed . | . . . . . . . . . . . . . . . . . Parts Field Recycled . | . . . . . . . . . . . . . . . . . Retrieved Matter . | . . . . . . . . . . . . . . . . . Parts Self-Destructed . | . . . . . . . . . . . . . . . . . Prevented . | . . . . . . . . . . . . . . . . . Parts Restored . | . . . . . . . . . . . . . . . . . Kills | -11 -10 -9 -9 -8 -7 -7 -7 -7 -6 -5 -4 -3 -2 -2 -1 -1 ------- Run | Yrd Mat Mat Min Mat Fac Gar Fac DSF Fac Fac Fac Res Res DSF Acc Com Combat Hostiles Destroyed . | . . . . . . . . . . . . . . . . . Classes Destroyed . | . . . . . . . . . . . . . . . . . Best Kill Streak . | . . . . . . . . . . . . . . . . . Combat Bots Only . | . . . . . . . . . . . . . . . . . Max Kills in Single Turn . | . . . . . . . . . . . . . . . . . Gunslinging . | . . . . . . . . . . . . . . . . . Exploded . | . . . . . . . . . . . . . . . . . Melee . | . . . . . . . . . . . . . . . . . Uniques/NPCs Destroyed . | . . . . . . . . . . . . . . . . . Combat | -11 -10 -9 -9 -8 -7 -7 -7 -7 -6 -5 -4 -3 -2 -2 -1 -1 -------- Run | Yrd Mat Mat Min Mat Fac Gar Fac DSF Fac Fac Fac Res Res DSF Acc Com Hostile Shots Fired 491 | . 9 44 1 24 13 9 . 6 29 . 54 26 . 1 235 40 Missed 251 | . 2 22 . 15 10 3 . 3 15 . 31 14 . 1 124 11 Hits 240 | . 7 22 1 9 3 6 . 3 14 . 23 12 . . 111 29 Melee 2 | . . . . . . . . . . . . 2 . . . . Projectile 238 | . 7 22 1 9 3 6 . 3 14 . 23 10 . . 111 29 AOE 4 | . . . . . . . . . . . . 3 . . 1 . Critical Strikes 13 | . . . . . . 2 . . . . . 2 . . 7 2 Actively Blocked 2 | . . . . . . . . . . . . . . . . 2 Part Disruptions 1 | . . . . . . . . . . . . . . . 1 . Damage Taken 5300 | . 79 222 7 116 45 89 . 179 177 . 619 349 . . 2652 766 Core 2375 | . 79 116 7 89 32 28 . 87 64 . 160 92 . . 1376 245 Absorbed by Shields 67 | . . . . . . . . . . . . . . . . 67 Redirected to Shielding 88 | . . . . . . . . . . . . . . . . 88 Regen/Repaired (Parts) 31 | . . . . . . . . . . . 26 . . . 5 . Core Remaining (%) 86 | 100 68 . 69 83 . . . 79 92 100 86 92 . 100 . . Volleys Fired . | . . . . . . . . . . . . . . . . . Largest . | . . . . . . . . . . . . . . . . . Hottest . | . . . . . . . . . . . . . . . . . Shots Fired . | . . . . . . . . . . . . . . . . . Gun . | . . . . . . . . . . . . . . . . . Cannon . | . . . . . . . . . . . . . . . . . Launcher . | . . . . . . . . . . . . . . . . . Special . | . . . . . . . . . . . . . . . . . Kinetic . | . . . . . . . . . . . . . . . . . Thermal . | . . . . . . . . . . . . . . . . . Explosive . | . . . . . . . . . . . . . . . . . Electromagnetic . | . . . . . . . . . . . . . . . . . Robot Hit Streak . | . . . . . . . . . . . . . . . . . Robot Miss Streak . | . . . . . . . . . . . . . . . . . Penetration Max . | . . . . . . . . . . . . . . . . . Secondary Targets . | . . . . . . . . . . . . . . . . . Shots Hit Robots . | . . . . . . . . . . . . . . . . . Core Hits 2 | . 1 1 . . . . . . . . . . . . . . Critical Kills . | . . . . . . . . . . . . . . . . . Critical Parts Destroyed . | . . . . . . . . . . . . . . . . . Critical Strikes . | . . . . . . . . . . . . . . . . . Melee Attacks 40 | . . . . . . . . . . 2 3 1 4 . 30 . Impact 30 | . . . . . . . . . . . . 1 3 . 26 . Slashing 2 | . . . . . . . . . . 2 . . . . . . Piercing 8 | . . . . . . . . . . . 3 . 1 . 4 . Sneak Attacks . | . . . . . . . . . . . . . . . . . Combat Hostiles . | . . . . . . . . . . . . . . . . . Follow-up Attacks . | . . . . . . . . . . . . . . . . . Damage Inflicted 13 | . 8 5 . . . . . . . . . . . . . . Guns . | . . . . . . . . . . . . . . . . . Cannons . | . . . . . . . . . . . . . . . . . Explosions . | . . . . . . . . . . . . . . . . . Melee . | . . . . . . . . . . . . . . . . . Ramming 13 | . 8 5 . . . . . . . . . . . . . . Kinetic . | . . . . . . . . . . . . . . . . . Thermal . | . . . . . . . . . . . . . . . . . Explosive . | . . . . . . . . . . . . . . . . . Electromagnetic . | . . . . . . . . . . . . . . . . . Impact . | . . . . . . . . . . . . . . . . . Slashing . | . . . . . . . . . . . . . . . . . Piercing . | . . . . . . . . . . . . . . . . . Highest Corruption 12 | . . . . . . . . . . . 8 2 . . 12 12 Average Corruption 5 | . . . . . . . . . . . 7 1 . . 3 12 Corruption Purged . | . . . . . . . . . . . . . . . . . Corruption Blocked . | . . . . . . . . . . . . . . . . . Effects 22 | . . . . . . . . . . . 7 . . . 10 5 Message Errors 9 | . . . . . . . . . . . 4 . . . 3 2 Matter Fused 5 | . . . . . . . . . . . 1 . . . 2 2 Heat Flow Errors 3 | . . . . . . . . . . . . . . . 2 1 Data Loss (minor) 3 | . . . . . . . . . . . 2 . . . 1 . Data Loss (major) 1 | . . . . . . . . . . . . . . . 1 . Misdirections 1 | . . . . . . . . . . . . . . . 1 . Overload Shots . | . . . . . . . . . . . . . . . . . Overflow Damage . | . . . . . . . . . . . . . . . . . Projectiles . | . . . . . . . . . . . . . . . . . Explosions . | . . . . . . . . . . . . . . . . . Melee . | . . . . . . . . . . . . . . . . . Knockbacks . | . . . . . . . . . . . . . . . . . Impact . | . . . . . . . . . . . . . . . . . Kinetic . | . . . . . . . . . . . . . . . . . Secondary . | . . . . . . . . . . . . . . . . . Self-Inflicted Damage 5 | . 3 2 . . . . . . . . . . . . . . Shots . | . . . . . . . . . . . . . . . . . Rammed 5 | . 3 2 . . . . . . . . . . . . . . Targets Rammed 5 | . 3 2 . . . . . . . . . . . . . . Kicked . | . . . . . . . . . . . . . . . . . Crushed . | . . . . . . . . . . . . . . . . . Highest Temperature 248 | . . . . . . . . . 208 . . 9 . . 154 248 Average Temperature 80 | . . . . . . . . . 105 . . 5 . . 33 121 Received Heat Transfer 537 | . 42 45 . 45 27 72 . . 15 . 21 39 . . 216 15 Siege Activations . | . . . . . . . . . . . . . . . . . Martial Activations . | . . . . . . . . . . . . . . . . . Shielding Activations . | . . . . . . . . . . . . . . . . . Robots Disrupted . | . . . . . . . . . . . . . . . . . Combat Hostiles . | . . . . . . . . . . . . . . . . . Robots Corrupted . | . . . . . . . . . . . . . . . . . Combat Hostiles . | . . . . . . . . . . . . . . . . . Parts Fried . | . . . . . . . . . . . . . . . . . Impact Corruptions . | . . . . . . . . . . . . . . . . . Robots Melted . | . . . . . . . . . . . . . . . . . Combat Hostiles . | . . . . . . . . . . . . . . . . . Parts Melted . | . . . . . . . . . . . . . . . . . Heat Transferred . | . . . . . . . . . . . . . . . . . Parts Sabotaged . | . . . . . . . . . . . . . . . . . Parts Stolen . | . . . . . . . . . . . . . . . . . Parts Stripped . | . . . . . . . . . . . . . . . . . Power Chain Reactions . | . . . . . . . . . . . . . . . . . Alert | -11 -10 -9 -9 -8 -7 -7 -7 -7 -6 -5 -4 -3 -2 -2 -1 -1 ------- Run | Yrd Mat Mat Min Mat Fac Gar Fac DSF Fac Fac Fac Res Res DSF Acc Com Maximum Alert Level . | . . . . . . . . . . . . . . . . . Low Security (%) 100 | 100 100 100 100 100 100 100 100 100 100 100 100 100 100 100 100 100 Level 1 . | . . . . . . . . . . . . . . . . . Level 2 . | . . . . . . . . . . . . . . . . . Level 3 . | . . . . . . . . . . . . . . . . . Level 4 . | . . . . . . . . . . . . . . . . . Level 5 . | . . . . . . . . . . . . . . . . . High Security . | . . . . . . . . . . . . . . . . . Max Security . | . . . . . . . . . . . . . . . . . Peak Influence 181 | . 24 15 1 65 31 71 37 30 65 41 130 123 128 96 181 170 Initial 115 | . . 8 1 . 31 21 37 25 15 31 14 58 63 96 57 115 Average 49 | . 12 2 . 11 13 31 37 21 13 26 42 56 82 96 78 128 Influence Increases 1558 | . 30 15 . 90 30 50 . 15 100 30 287 175 85 . 546 105 Successful Hack 307 | . 30 . . . . . . . 10 26 13 53 46 . 84 45 Disable Machine 15 | . . . . . . . . . . . 15 . . . . . Anti-Garrison Action 50 | . . . . . . 50 . . . . . . . . . . Destroy Structure 76 | . . . . . . . . . . 4 4 2 9 . 57 . Partial Spotted 120 | . . . . . . . . . 15 . 60 . 30 . 15 . Lose Combat Pursuer 990 | . . 15 . 90 30 . . 15 75 . 195 120 . . 390 60 Influence Decreases 1438 | . 10 30 5 20 70 9 34 22 65 64 206 174 70 32 461 166 Entered New Map 417 | . . 12 4 . 39 9 34 12 15 34 17 54 50 32 39 66 Time Decay 617 | . 10 18 1 10 31 . . . 40 30 135 60 20 . 222 40 Lost Part 394 | . . . . 10 . . . 10 10 . 54 50 . . 200 60 Lost Ally 10 | . . . . . . . . . . . . 10 . . . . Squads Dispatched 28 | . 2 2 . 1 1 . 1 1 . 1 6 3 . . 8 2 Investigation 18 | . 2 1 . 1 1 . 1 . . 1 4 2 . . 4 1 Extermination 5 | . . . . . . . . . . . 2 . . . 3 . Reinforcement 5 | . . 1 . . . . . 1 . . . 1 . . 1 1 Assault . | . . . . . . . . . . . . . . . . . Garrison . | . . . . . . . . . . . . . . . . . Intercept . | . . . . . . . . . . . . . . . . . Searches Triggered . | . . . . . . . . . . . . . . . . . Construction Impeded . | . . . . . . . . . . . . . . . . . Haulers Reinforced . | . . . . . . . . . . . . . . . . . Active Scanning Responses . | . . . . . . . . . . . . . . . . . Cargo Convoy Interrupts . | . . . . . . . . . . . . . . . . . Stealth | -11 -10 -9 -9 -8 -7 -7 -7 -7 -6 -5 -4 -3 -2 -2 -1 -1 --------- Run | Yrd Mat Mat Min Mat Fac Gar Fac DSF Fac Fac Fac Res Res DSF Acc Com Distress Signals 6 | . . . . . . . . . 1 . 1 1 . . 3 . Communications Jammed . | . . . . . . . . . . . . . . . . . Distress Signals . | . . . . . . . . . . . . . . . . . Times Spotted 204 | . 9 10 4 17 6 4 . 1 16 2 29 20 . 2 65 19 Peak Tracking Total 19 | . 8 9 6 17 4 7 . 1 10 1 11 9 . 2 19 14 Tactical Retreats 29 | . . 1 . 2 1 . . 1 1 . 5 3 . . 14 1 ECM-based Alert Blocks 11 | . . . . . . . . . . . . . . . 11 . Traps | -11 -10 -9 -9 -8 -7 -7 -7 -7 -6 -5 -4 -3 -2 -2 -1 -1 ------- Run | Yrd Mat Mat Min Mat Fac Gar Fac DSF Fac Fac Fac Res Res DSF Acc Com Traps Triggered 15 | . . . . . 1 . . . . . 3 2 . . 5 4 Indirectly . | . . . . . . . . . . . . . . . . . Trap Hack Attempts . | . . . . . . . . . . . . . . . . . Triggered . | . . . . . . . . . . . . . . . . . Disarmed . | . . . . . . . . . . . . . . . . . Reprogrammed . | . . . . . . . . . . . . . . . . . Reused . | . . . . . . . . . . . . . . . . . Traps Extracted . | . . . . . . . . . . . . . . . . . Installed . | . . . . . . . . . . . . . . . . . Triggered . | . . . . . . . . . . . . . . . . . Machines | -11 -10 -9 -9 -8 -7 -7 -7 -7 -6 -5 -4 -3 -2 -2 -1 -1 ---------- Run | Yrd Mat Mat Min Mat Fac Gar Fac DSF Fac Fac Fac Res Res DSF Acc Com Machines Disabled 1 | . . . . . . . . . . . 1 . . . . . Max in Single Turn 1 | . . . . . . . . . . . 1 . . . . . Machines Repaired . | . . . . . . . . . . . . . . . . . Machines Dismantled . | . . . . . . . . . . . . . . . . . Machines Sabotaged . | . . . . . . . . . . . . . . . . . Overloaded Fab Kills . | . . . . . . . . . . . . . . . . . Hacking | -11 -10 -9 -9 -8 -7 -7 -7 -7 -6 -5 -4 -3 -2 -2 -1 -1 --------- Run | Yrd Mat Mat Min Mat Fac Gar Fac DSF Fac Fac Fac Res Res DSF Acc Com Machines Accessed 42 | . 5 1 . 1 1 1 1 . 4 1 8 4 2 . 11 2 Terminals 34 | . 4 1 . 1 . 1 1 . 3 1 5 3 2 . 10 2 Fabricators . | . . . . . . . . . . . . . . . . . Repair Stations 5 | . 1 . . . . . . . . . 2 1 . . 1 . Recycling Units . | . . . . . . . . . . . . . . . . . Scanalyzers 2 | . . . . . . . . . 1 . 1 . . . . . Garrison Access 1 | . . . . . 1 . . . . . . . . . . . Total Hacks 158 | . 18 3 . 2 1 3 3 . 37 11 22 19 6 . 25 8 Successful 79 | . 7 1 . . 1 1 1 . 25 2 12 11 5 . 11 2 Failed 79 | . 11 2 . 2 . 2 2 . 12 9 10 8 1 . 14 6 Catastrophic 10 | . 1 . . . . . . . 2 1 2 . . . 3 1 Database Lockouts . | . . . . . . . . . . . . . . . . . Manual 94 | . 13 3 . 2 . 3 . . 22 9 16 14 1 . 9 2 Terminals 137 | . 13 3 . 2 . 3 3 . 32 11 17 16 6 . 23 8 Fabricators . | . . . . . . . . . . . . . . . . . Repair Stations 14 | . 5 . . . . . . . . . 4 3 . . 2 . Recycling Units . | . . . . . . . . . . . . . . . . . Scanalyzers 6 | . . . . . . . . . 5 . 1 . . . . . Garrison Access 1 | . . . . . 1 . . . . . . . . . . . Terminal Hacks 33 | . 4 . . . . . 1 . 9 1 3 3 4 . 6 2 Prototype ID Bank 2 | . . . . . . . . . 1 . 1 . . . . . Open Door 3 | . . . . . . . . . . . . . . . 3 . Open DSF 2 | . . . . . . . 1 . . . . . 1 . . . Level Access Points 5 | . 1 . . . . . . . 1 . 1 1 . . . 1 Branch Access Points 3 | . . . . . . . . . . . . 1 1 . 1 . Terminal Index 3 | . . . . . . . . . 2 . . . . . 1 . Repair Station Index 2 | . . . . . . . . . . . . . 1 . 1 . Alert Level 1 | . . . . . . . . . . . 1 . . . . . Locate Traps 1 | . . . . . . . . . . . . . 1 . . . Registered Components 4 | . 1 . . . . . . . 1 1 . . . . . 1 Registered Prototypes 1 | . . . . . . . . . 1 . . . . . . . Zone Layout 6 | . 2 . . . . . . . 3 . . 1 . . . . Fabricator Hacks . | . . . . . . . . . . . . . . . . . Repair Station Hacks 3 | . . . . . . . . . . . 1 1 . . 1 . Refit 3 | . . . . . . . . . . . 1 1 . . 1 . Recycling Unit Hacks . | . . . . . . . . . . . . . . . . . Scanalyzer 6 | . . . . . . . . . 5 . 1 . . . . . Insert Component 1 | . . . . . . . . . 1 . . . . . . . Analyze 1 | . . . . . . . . . 1 . . . . . . . Retrieve Study 4 | . . . . . . . . . 3 . 1 . . . . . Garrison Access Hacks 1 | . . . . . 1 . . . . . . . . . . . Unlock Access 1 | . . . . . 1 . . . . . . . . . . . Unauthorized Hacks 36 | . 3 1 . . . 1 . . 11 1 7 7 1 . 4 . Terminals 33 | . 3 1 . . . 1 . . 11 1 5 7 1 . 3 . Track 3 | . . . . . . . . . 2 . . 1 . . . . Assimilate 4 | . . . . . . . . . 2 . . 2 . . . . Botnet 17 | . 2 1 . . . . . . 3 1 4 2 1 . 3 . Disrupt 2 | . 1 . . . . . . . . . . 1 . . . . Operators 2 | . . . . . . . . . 1 . . 1 . . . . Skim 3 | . . . . . . . . . 3 . . . . . . . Search 1 | . . . . . . . . . . . 1 . . . . . Override 1 | . . . . . . 1 . . . . . . . . . . Fabricators . | . . . . . . . . . . . . . . . . . Repair Stations 3 | . . . . . . . . . . . 2 . . . 1 . Patch 3 | . . . . . . . . . . . 2 . . . 1 . Recycling Units . | . . . . . . . . . . . . . . . . . Scanalyzers . | . . . . . . . . . . . . . . . . . Garrison Access . | . . . . . . . . . . . . . . . . . Data Cores Recovered . | . . . . . . . . . . . . . . . . . Used . | . . . . . . . . . . . . . . . . . Hacking Detections 36 | . 5 1 . 1 1 1 1 . 3 1 5 4 1 . 10 2 Full Trace Events 13 | . 2 1 . 1 . . 1 . . 1 1 2 . . 3 1 Feedback Events . | . . . . . . . . . . . . . . . . . Feedback Blocked . | . . . . . . . . . . . . . . . . . Robot Schematics Acquired . | . . . . . . . . . . . . . . . . . Robots Built . | . . . . . . . . . . . . . . . . . Authchips . | . . . . . . . . . . . . . . . . . Time . | . . . . . . . . . . . . . . . . . Total Robot Build Rating . | . . . . . . . . . . . . . . . . . Part Schematics Acquired 1 | . . . . . . . . . 1 . . . . . . . Parts Built . | . . . . . . . . . . . . . . . . . Authchips . | . . . . . . . . . . . . . . . . . Time . | . . . . . . . . . . . . . . . . . Total Part Build Rating . | . . . . . . . . . . . . . . . . . Part Studies Acquired 4 | . . . . . . . . . 3 . 1 . . . . . Parts Repaired . | . . . . . . . . . . . . . . . . . Time . | . . . . . . . . . . . . . . . . . Parts Recycled . | . . . . . . . . . . . . . . . . . Recycled Matter . | . . . . . . . . . . . . . . . . . Retrieved Matter . | . . . . . . . . . . . . . . . . . Retrieved Components . | . . . . . . . . . . . . . . . . . Parts Scanalyzed 1 | . . . . . . . . . 1 . . . . . . . Part Schematics Acquired 1 | . . . . . . . . . 1 . . . . . . . Parts Damaged . | . . . . . . . . . . . . . . . . . Bothacking | -11 -10 -9 -9 -8 -7 -7 -7 -7 -6 -5 -4 -3 -2 -2 -1 -1 ------------ Run | Yrd Mat Mat Min Mat Fac Gar Fac DSF Fac Fac Fac Res Res DSF Acc Com Used RIF Installer . | . . . . . . . . . . . . . . . . . Robots Hacked . | . . . . . . . . . . . . . . . . . Non-combat . | . . . . . . . . . . . . . . . . . Combat . | . . . . . . . . . . . . . . . . . Robot Hacks Applied . | . . . . . . . . . . . . . . . . . Relay Couplers Released . | . . . . . . . . . . . . . . . . . Fabnet Peak Effective % . | . . . . . . . . . . . . . . . . . Robots Rewired . | . . . . . . . . . . . . . . . . . Allies Hacked . | . . . . . . . . . . . . . . . . . Hacks Repelled . | . . . . . . . . . . . . . . . . . Allies | -11 -10 -9 -9 -8 -7 -7 -7 -7 -6 -5 -4 -3 -2 -2 -1 -1 -------- Run | Yrd Mat Mat Min Mat Fac Gar Fac DSF Fac Fac Fac Res Res DSF Acc Com Total Allies 4 | . . . 3 . . . . . . . . 1 . . . . Largest Group 3 | . . . 3 . . . . . . . . 1 . . . . Highest-Rated Group 40 | . . . 40 . . . . . . . . 26 . . . . Highest-Rated Ally 26 | . . . 16 . . . . . . . . 26 . . . . Total Orders . | . . . . . . . . . . . . . . . . . Ally Attacks 6 | . . . 6 . . . . . . . . . . . . . Total Damage 60 | . . . 60 . . . . . . . . . . . . . Kills . | . . . . . . . . . . . . . . . . . Allies Corrupted . | . . . . . . . . . . . . . . . . . Allies Melted . | . . . . . . . . . . . . . . . . . Intel | -11 -10 -9 -9 -8 -7 -7 -7 -7 -6 -5 -4 -3 -2 -2 -1 -1 ------- Run | Yrd Mat Mat Min Mat Fac Gar Fac DSF Fac Fac Fac Res Res DSF Acc Com Active Infowar (turns) 1227 | . . . . . . . . . 63 69 342 138 44 17 472 82 Optics 1227 | . . . . . . . . . 63 69 342 138 44 17 472 82 Sensors 533 | . . . . . . . . . . . . 138 44 17 334 . Terrain 339 | . . . . . . . . . . . . . . 8 331 . Seismic 379 | . . . . . . . . . . . . . 31 17 331 . Cloaking 82 | . . . . . . . . . . . 20 62 . . . . ECM 125 | . . . . . . . . . . . . . . . 125 . Robot Analysis Total . | . . . . . . . . . . . . . . . . . Derelict Logs Recovered 1 | . . . 1 . . . . . . . . . . . . . Drone Launches . | . . . . . . . . . . . . . . . . . Drone Recoveries . | . . . . . . . . . . . . . . . . . Exploration | -11 -10 -9 -9 -8 -7 -7 -7 -7 -6 -5 -4 -3 -2 -2 -1 -1 ------------- Run | Yrd Mat Mat Min Mat Fac Gar Fac DSF Fac Fac Fac Res Res DSF Acc Com Turns Passed 1704 | 13 37 81 39 69 109 41 2 52 97 69 342 138 44 17 472 82 Spaces Moved 4210 | 25 67 172 98 165 211 82 3 73 346 211 980 389 91 36 964 297 Core 499 | 25 67 66 . 9 211 82 3 33 . . . . . . 3 . Treads . | . . . . . . . . . . . . . . . . . Legs . | . . . . . . . . . . . . . . . . . Wheels . | . . . . . . . . . . . . . . . . . Hover 34 | . . . . . . . . . . . . . . . 34 . Flight 3677 | . . 106 98 156 . . . 40 346 211 980 389 91 36 927 297 Fastest Speed 21 | 50 50 40 40 40 50 50 50 28 25 28 28 31 34 34 23 21 Average Speed 34 | 50 50 43 40 40 50 50 50 42 25 28 31 31 34 34 36 22 Slowest Speed 150 | 50 50 50 40 50 50 50 50 50 31 28 34 34 34 34 150 49 Overloaded Moves . | . . . . . . . . . . . . . . . . . Propulsion Burnouts . | . . . . . . . . . . . . . . . . . Robots Hopped 86 | . . 12 . 4 . . . . 7 1 12 14 1 . 27 8 Potential Cave-ins . | . . . . . . . . . . . . . . . . . Cave-ins Triggered . | . . . . . . . . . . . . . . . . . Exploration Rate (%) 25 | 3 25 27 41 24 10 25 . 55 14 10 40 17 6 48 42 15 Regions Visited 16 Branch Regions 2 Pre-discovered Areas . | . . . . . . . . . . . . . . . . . Known Exits Taken 8 | . 1 . . . 1 . 1 . 1 . 1 1 1 . 1 . Unknown Exits Taken 5 | 1 . 1 1 1 . . . . . 1 . . . . . . Scrap Searched . | . . . . . . . . . . . . . . . . . Spaces Dug 28 | . . . . . . . . . . 2 2 1 3 . 20 . Terrain Destroyed 28 | . . . . . . . . . . 2 2 1 3 . 20 . Melee 28 | . . . . . . . . . . 2 2 1 3 . 20 . Projectile . | . . . . . . . . . . . . . . . . . AOE . | . . . . . . . . . . . . . . . . . Terrain Rammed . | . . . . . . . . . . . . . . . . . Walls Destroyed . | . . . . . . . . . . . . . . . . . Machines Disabled . | . . . . . . . . . . . . . . . . . Actions | -11 -10 -9 -9 -8 -7 -7 -7 -7 -6 -5 -4 -3 -2 -2 -1 -1 --------- Run | Yrd Mat Mat Min Mat Fac Gar Fac DSF Fac Fac Fac Res Res DSF Acc Com Total 4277 | 25 69 163 97 162 213 81 2 90 347 215 989 386 96 38 1002 302 Wait 15 | . . . . . . . . 1 2 . . . 1 . 11 . Move 4036 | 24 66 152 97 156 211 81 2 72 332 208 956 362 88 35 913 281 Hop 73 | . . 7 . 4 . . . . 6 1 11 12 1 . 23 8 Pick Up 20 | 1 . . . 1 1 . . 5 1 1 4 3 . . 1 2 Fast Attach 60 | . . 2 . 1 1 . . 6 2 1 8 4 2 3 24 6 Attach 19 | . . . . . . . . 5 2 2 2 2 . . 2 4 Detach 2 | . . . . . . . . . . . 1 . . . 1 . Swap 3 | . . . . . . . . . . . 1 2 . . . . Drop 8 | . . . . . . . . 1 2 . 3 . 1 . 1 . Fire . | . . . . . . . . . . . . . . . . . Melee 35 | . . . . . . . . . . 2 3 1 3 . 26 . Ram 5 | . 3 2 . . . . . . . . . . . . . . Kick . | . . . . . . . . . . . . . . . . . Crush . | . . . . . . . . . . . . . . . . . Escape Stasis 1 | . . . . . . . . . . . . . . . . 1 Rewire . | . . . . . . . . . . . . . . . . . Trap . | . . . . . . . . . . . . . . . . . Miscellaneous . | . . . . . . . . . . . . . . . . . Route ------- -11/Scrapyard -10/Materials (discovered 3 exits: *Mat x3) -9/Materials -9/Mines -8/Materials -7/Factory -7/Garrison (discovered 3 exits: *Fac x3) -7/Factory -7/DSF -6/Factory (discovered 4 exits: *Fac x4) -5/Factory -4/Factory (discovered 4 exits: *Res x4) -3/Research (discovered 6 exits: *Res x3 / Arm / Qua x2) -2/Research (discovered 3 exits: Tes x2 / DSF) -2/DSF -1/Access -1/Command (discovered 2 exits: Sur x2) History --------- Turn | Location | Event 6 | -11/Scrapyard | Discovered new exit (range 16) 14 | -11/Scrapyard | Entered Materials 29 | -10/Materials | Identified exit to Materials 51 | -10/Materials | Entered another Materials area 51 | -9/Materials | Evolved 2 slots: Propulsion x2 127 | -9/Materials | Discovered new exit (range 11) 132 | -9/Materials | Entered Mines 137 | -9/Mines | Learned 2 Materials zone layouts 158 | -9/Mines | Assisted by bots powering up and referring to "LRC-V3" 168 | -9/Mines | Discovered new exit (range 10) 171 | -9/Mines | Entered Materials 171 | -8/Materials | Evolved 2 slots: Utility x2 239 | -8/Materials | Discovered new exit (range 4) 240 | -8/Materials | Entered Factory 240 | -7/Factory | Evolved 2 slots: Power x1, Propulsion x1 324 | -7/Factory | Build established: Mutant 349 | -7/Factory | Identified exit to Garrison 349 | -7/Factory | Entered Garrison 369 | -7/Garrison | Triggered checkpoint 381 | -7/Garrison | Identified exit to Factory 390 | -7/Garrison | Entered Factory 392 | -7/Factory | Identified exit to DSF 392 | -7/Factory | Entered DSF 406 | -7/DSF | Discovered new exit (range 16) 417 | -7/DSF | Additional patrols routed to DSF 444 | -7/DSF | Entered Factory 444 | -6/Factory | Evolved 2 slots: Propulsion x1, Utility x1 461 | -6/Factory | Identified exit to Factory 541 | -6/Factory | Entered another Factory area 541 | -5/Factory | Evolved 2 slots: Utility x2 604 | -5/Factory | Discovered new exit (range 22) 610 | -5/Factory | Entered another Factory area 610 | -4/Factory | Evolved 2 slots: Propulsion x1, Utility x1 651 | -4/Factory | Lost 4 parts (2p1n1w) 701 | -4/Factory | Build established: Hacker-Sprinter 707 | -4/Factory | Found Prototype Processor 707 | -4/Factory | Identified Exp. Signal Interpreter 710 | -4/Factory | Found Exp. Signal Interpreter 774 | -4/Factory | Found Prototype Processor 774 | -4/Factory | Identified Exp. Melee Analysis Suite 901 | -4/Factory | Spotted B-86 Titan 937 | -4/Factory | Identified exit to Research 952 | -4/Factory | Entered Research 952 | -3/Research | Evolved 2 slots: Utility x2 1033 | -3/Research | Identified exit to Research 1068 | -3/Research | Identified exit to Armory 1068 | -3/Research | Identified exit to Quarantine 1077 | -3/Research | Lost 3 parts (1p2u) 1090 | -3/Research | Entered another Research area 1090 | -2/Research | Evolved 2 slots: Propulsion x1, Utility x1 1115 | -2/Research | Identified exit to Testing 1123 | -2/Research | Found Prototype Protection 1123 | -2/Research | Identified Centrium Heavy Armor Plating 1134 | -2/Research | Identified exit to DSF 1134 | -2/Research | Entered DSF 1137 | -2/DSF | Discovered new exit (range 21) 1151 | -2/DSF | Identified exit to Access 1151 | -2/DSF | Entered Access 1151 | -1/Access | Evolved 2 slots: Utility x2 1279 | -1/Access | Spotted B-99 Colossus 1310 | -1/Access | Lost 4 parts (2p1n1u) 1469 | -1/Access | Identified exit to Command 1555 | -1/Access | Core integrity fell below 50% 1595 | -1/Access | System corruption reached 10% 1596 | -1/Access | Core integrity fell below 20% 1623 | -1/Access | Entered Command 1625 | -1/Command | Lost 14 parts (2p8n3u1w) 1633 | -1/Command | Identified exit to Surface 1687 | -1/Command | Found Quantum Capacitor 1700 | -1/Command | Spotted Alpha 7 1700 | -1/Command | Spotted Striker 1700 | -1/Command | Spotted Executioner 1700 | -1/Command | Spotted Executioner 1700 | -1/Command | Spotted Alpha 7 1700 | -1/Command | Spotted Striker 1700 | -1/Command | Spotted Executioner 1700 | -1/Command | Spotted Executioner 1700 | -1/Command | Spotted B-99 Colossus 1703 | -1/Command | Spotted B-99 Colossus 1705 | -1/Command | Destroyed by Executioner with Helical Railgun Last Messages --------------- 01701_ Penetrated by Slug. 01701_ Slug penetrates Wall. 01701_ Penetrated by Slug. 01701_ Slug penetrates Wall. 01702_ Penetrated by Slug. 01702_ Stasis Canceller destroyed. 01702_ Slug penetrates Wall. 01702_ Penetrated by Slug. 01702_ Impulse Thruster destroyed. 01702_ Slug penetrates Executioner. 01703_ Triggered Stasis Trap. 01703_ A bubble of rippling energy engulfs the area. 01703_ Field strength at 94. 01703_ Slug penetrates Executioner. 01703_ Penetrated by Slug. 01704_ Field strength at 36. 01704_ Penetrated by Slug. 01704_ Stasis field depleted. 01704_ Slug penetrates Wall. Map ----- +----------------------------------------------------+ | ?????????????????????????????????????????????????? | | ?????????????????????????????????????????????????? | | ?????????????????????????????????????????????????? | | ????????????????????#######+#+#############+#####? | | ????????????????????# #? | | ????????????????????# #? | | ????????????????????# #? | | ????????????????????# #? | | ????????????????????# #? | | ????????????????????# "" "" "" #? | | ????????????????????# """" """" """" #? | | ????????????????????# """" """" """" #? | | ????????????????????# "" "" "" #? | | ???????????????###+## ## | | ???????????????# | | ???????????????# | | ?????????????### | | ??? | | ?????????????######## ############+### ! | | ????????????????????# % ##???????? # | | ???????????????????##++++;#?????? # | | ???????????????????# #?????# # !!! | | ??????????????????##^ %7##????# # !! | | ?=????????????????#7 ^ #????# # !! | | ??????????????????##K % ##????# # | | ??????????????????# @K#????# # | | ??????????????????##E %EE##????# # | | ??????????????????# ?????# # !!! | | ??????????????????##E #?????# # !!! ## | | ??????????????????# ?????# # !! #? | | ??????????????????#; ^ #?????######### ! #? | | ?????????????????BB B?????????????# ## | | ????????????????#BB B?????????????# | | ????????????????# ^ ^ ?????????######/####### | | ????????????????# """""" ?????????# # | | ????????????????# ?????? ?????????# # | | ????????????????# ?????? ?????????# # | | ????????????????# ???